fUST/lending_fUST_20240906
["ID","MTS","AMOUNT","RATE_DAILY","PERIOD"]
[337367300,1725631881730,-500.0,0.00020547,2]
[337367301,1725631881742,-667.2,0.00020547,2]
[337367302,1725631881752,-500.0,0.00020547,2]
[337367303,1725631881764,-848.57,0.00020547,2]
[337367304,1725631881775,-621.23276181,0.00020547,2]
[337367305,1725631881785,-500.0,0.00020547,2]
[337367306,1725631881795,-500.0,0.00020547,2]
[337367307,1725631881807,-500.0,0.00020547,2]
[337367308,1725631881817,-500.0,0.00020547,2]
[337367309,1725631881826,-529.82492165,0.00020547,2]
[337367310,1725631881836,-500.0,0.00020547,2]
[337367311,1725631881846,-500.0,0.00020547,2]
[337367312,1725631881856,-600.42135479,0.00020547,2]
[337367313,1725631881865,-500.0,0.00020547,2]
[337367314,1725631881874,-500.0,0.00020547,2]
[337367315,1725631881884,-500.0,0.00020547,2]
[337367316,1725631881894,-500.0,0.00020547,2]
[337367317,1725631881906,-500.0,0.00020547,2]
[337367318,1725631881917,-676.68,0.00020547,2]
[337367319,1725631881927,-500.0,0.00020547,2]
[337367320,1725631881937,-500.0,0.00020547,2]
[337367321,1725631881949,-500.0,0.00020547,2]
[337367322,1725631881960,-500.0,0.00020547,2]
[337367323,1725631881971,-636.07,0.00020547,2]
[337367324,1725631881983,-500.0,0.00020547,2]
[337367325,1725631881994,-500.0,0.00020547,2]
[337367326,1725631882005,-221.175401,0.00020547,2]
[337367327,1725631882015,-500.0,0.00020547,2]
[337367328,1725631882026,-500.0,0.00020547,2]
[337367329,1725631882035,-500.0,0.00020547,2]
[337367330,1725631882047,-500.0,0.00020547,2]
[337367331,1725631882058,-500.0,0.00020547,2]
[337367332,1725631882068,-500.0,0.00020547,2]
[337367333,1725631882078,-500.0,0.00020547,2]
[337367334,1725631882089,-718.23,0.00020547,2]
[337367335,1725631882098,-500.0,0.00020547,2]
[337367336,1725631882108,-500.0,0.00020547,2]
[337367337,1725631882117,-500.0,0.00020547,2]
[337367338,1725631882126,-500.0,0.00020547,2]
[337367339,1725631882135,-500.0,0.00020547,2]
[337367340,1725631882144,-500.0,0.00020547,2]
[337367341,1725631882154,-1651.41,0.00020547,2]
[337367342,1725631882163,-500.0,0.00020547,2]
[337367343,1725631882172,-500.0,0.00020547,2]
[337367344,1725631882181,-346.30352449,0.00020547,2]
[337367345,1725631882193,-500.0,0.00020547,2]
[337367346,1725631882203,-1115.64,0.00020547,2]
[337367347,1725631882215,-1610.16,0.00020547,2]
[337367348,1725631882225,-500.0,0.00020547,2]
[337367349,1725631882235,-555.07,0.00020547,2]
[337367350,1725631882245,-500.0,0.00020547,2]
[337367351,1725631882256,-500.0,0.00020547,2]
[337367352,1725631882265,-522.21,0.00020547,2]
[337367353,1725631882275,-500.0,0.00020547,2]
[337367354,1725631882285,-500.0,0.00020547,2]
[337367355,1725631882294,-2093.39,0.00020547,2]
[337367356,1725631882304,-500.0,0.00020547,2]
[337367357,1725631882315,-648.33,0.00020547,2]
[337367358,1725631882325,-500.0,0.00020547,2]
[337367359,1725631882334,-500.0,0.00020547,2]
[337367360,1725631882343,-500.0,0.00020547,2]
[337367361,1725631882353,-2191.44,0.00020547,2]
[337367362,1725631882362,-500.0,0.00020547,2]
[337367363,1725631882371,-500.0,0.00020547,2]
[337367364,1725631882380,-500.0,0.00020547,2]
[337367365,1725631882389,-500.0,0.00020547,2]
[337367366,1725631882399,-500.0,0.00020547,2]
[337367367,1725631882411,-3029.51,0.00020547,2]
[337367368,1725631882420,-500.0,0.00020547,2]
[337367369,1725631882429,-500.0,0.00020547,2]
[337367370,1725631882440,-500.0,0.00020547,2]
[337367371,1725631882450,-500.0,0.00020547,2]
[337367372,1725631882461,-500.0,0.00020547,2]
[337367373,1725631882470,-500.0,0.00020547,2]
[337367374,1725631882479,-500.0,0.00020547,2]
[337367375,1725631882490,-500.0,0.00020547,2]
[337367376,1725631882500,-500.0,0.00020547,2]
[337367377,1725631882510,-500.0,0.00020547,2]
[337367378,1725631882520,-1309.28,0.00020547,2]
[337367379,1725631882533,-500.0,0.00020547,2]
[337367380,1725631882542,-500.0,0.00020547,2]
[337367381,1725631882552,-2317.55,0.00020547,2]
[337367382,1725631882568,-500.0,0.00020547,2]
[337367383,1725631882578,-500.0,0.00020547,2]
[337367384,1725631882588,-610.09334988,0.00020547,2]
[337367385,1725631882599,-953.81,0.00020547,2]
[337367386,1725631882609,-508.47736535,0.00020547,2]
[337367387,1725631882619,-590.50888972,0.00020547,2]
[337367388,1725631882628,-2214.38,0.00020547,2]
[337367389,1725631882638,-200.0,0.00020547,2]
[337367390,1725631882647,-500.0,0.00020547,2]
[337367391,1725631882657,-500.0,0.00020547,2]
[337367392,1725631882667,-500.0,0.00020547,2]
[337367393,1725631882676,-2383.39,0.00020547,2]
[337367394,1725631882685,-500.0,0.00020547,2]
[337367395,1725631882695,-500.0,0.00020547,2]
[337367396,1725631882704,-1150.25,0.00020547,2]
[337367397,1725631882714,-500.0,0.00020547,2]
[337367398,1725631882724,-1383.67,0.00020547,2]
[337367399,1725631882734,-574.52,0.00020547,2]
[337367400,1725631882744,-500.0,0.00020547,2]
[337367401,1725631882753,-1055.24,0.00020547,2]
[337367402,1725631882763,-1183.94,0.00020547,2]
[337367403,1725631882773,-953.31,0.00020547,2]
[337367404,1725631882783,-500.0,0.00020547,2]
[337367405,1725631882792,-500.0,0.00020547,2]
[337367406,1725631882802,-578.12350322,0.00020547,2]
[337367407,1725631882818,-500.0,0.00020547,2]
[337367408,1725631882829,-1004.18,0.00020547,2]
[337367409,1725631882839,-500.0,0.00020547,2]
[337367410,1725631882848,-521.00879089,0.00020547,2]
[337367411,1725631882858,-500.0,0.00020547,2]
[337367412,1725631882868,-500.0,0.00020547,2]
[337367413,1725631882878,-500.0,0.00020547,2]
[337367414,1725631882887,-500.0,0.00020547,2]
[337367415,1725631882897,-500.0,0.00020547,2]
[337367416,1725631882906,-500.0,0.00020547,2]
[337367417,1725631882915,-609.29,0.00020547,2]
[337367418,1725631882924,-1073.16,0.00020547,2]
[337367419,1725631882933,-500.0,0.00020547,2]
[337367420,1725631882942,-500.0,0.00020547,2]
[337367421,1725631882952,-500.0,0.00020547,2]
[337367422,1725631882961,-500.0,0.00020547,2]
[337367423,1725631882971,-500.0,0.00020547,2]
[337367424,1725631882980,-500.0,0.00020547,2]
[337367425,1725631882990,-500.0,0.00020547,2]
[337367426,1725631883000,-984.52,0.00020547,2]
[337367427,1725631883009,-500.0,0.00020547,2]
[337367428,1725631883019,-500.0,0.00020547,2]
[337367429,1725631883029,-500.0,0.00020547,2]
[337367430,1725631883038,-802.18,0.00020547,2]
[337367431,1725631883048,-500.0,0.00020547,2]
[337367432,1725631883061,-502.79,0.00020547,2]
[337367433,1725631883071,-500.0,0.00020547,2]
[337367434,1725631883080,-500.0,0.00020547,2]
[337367435,1725631883090,-672.02,0.00020547,2]
[337367436,1725631883099,-1736.67,0.00020547,2]
[337367437,1725631883108,-2241.58,0.00020547,2]
[337367438,1725631883118,-500.0,0.00020547,2]
[337367439,1725631883127,-500.0,0.00020547,2]
[337367440,1725631883137,-427.68002149,0.00020547,2]
[337367441,1725631883146,-500.0,0.00020547,2]
[337367442,1725631883156,-500.0,0.00020547,2]
[337367443,1725631883165,-709.85,0.00020547,2]
[337367444,1725631883175,-929.24,0.00020547,2]
[337367445,1725631883184,-789.68,0.00020547,2]
[337367446,1725631883193,-564.3,0.00020547,2]
[337367447,1725631883203,-500.0,0.00020547,2]
[337367448,1725631883212,-488.60101957,0.00020547,2]
[337367449,1725631883221,-2150.56,0.00020547,2]
[337367450,1725631883231,-500.0,0.00020547,2]
[337367451,1725631883240,-500.0,0.00020547,2]
[337367452,1725631883249,-500.0,0.00020547,2]
[337367453,1725631883260,-774.77,0.00020547,2]
[337367454,1725631883269,-500.0,0.00020547,2]
[337367455,1725631883279,-500.0,0.00020547,2]
[337367456,1725631883289,-500.0,0.00020547,2]
[337367457,1725631883299,-500.0,0.00020547,2]
[337367458,1725631883313,-1717.67,0.00020547,2]
[337367459,1725631883324,-537.94,0.00020547,2]
[337367460,1725631883335,-500.0,0.00020547,2]
[337367461,1725631883345,-500.0,0.00020547,2]
[337367462,1725631883355,-500.0,0.00020547,2]
[337367463,1725631883366,-501.02,0.00020547,2]
[337367464,1725631883376,-500.0,0.00020547,2]
[337367465,1725631883385,-500.0,0.00020547,2]
[337367466,1725631883395,-503.49924222,0.00020547,2]
[337367467,1725631883405,-500.0,0.00020547,2]
[337367468,1725631883414,-503.18499082,0.00020547,2]
[337367469,1725631883424,-500.0,0.00020547,2]
[337367470,1725631883433,-1438.2,0.00020547,2]
[337367471,1725631883443,-500.0,0.00020547,2]
[337367472,1725631883452,-193.22887196,0.00020547,2]
[337367473,1725631883461,-500.0,0.00020547,2]
[337367474,1725631883472,-564.71,0.00020547,2]
[337367475,1725631883482,-500.0,0.00020547,2]
[337367476,1725631883492,-365.01202085,0.00020547,2]
[337367477,1725631883503,-1150.94,0.00020547,2]
[337367478,1725631883513,-500.0,0.00020547,2]
[337367479,1725631883527,-500.0,0.00020547,2]
[337367480,1725631883608,-190.46832629,0.00020547,2]
[337367481,1725631883619,-500.0,0.00020547,2]
[337367482,1725631883629,-500.0,0.00020547,2]
[337367483,1725631883639,-500.0,0.00020547,2]
[337367484,1725631883649,-500.0,0.00020547,2]
[337367485,1725631883658,-1637.9,0.00020547,2]
[337367486,1725631883667,-3128.92,0.00020547,2]
[337367487,1725631883676,-500.0,0.00020547,2]
[337367488,1725631883685,-645.59,0.00020547,2]
[337367489,1725631883695,-500.0,0.00020547,2]
[337367490,1725631883705,-500.0,0.00020547,2]
[337367491,1725631883714,-500.0,0.00020547,2]
[337367492,1725631883726,-502.23152591,0.00020547,2]
[337367493,1725631883736,-549.21,0.00020547,2]
[337367494,1725631883746,-500.0,0.00020547,2]
[337367495,1725631883757,-1354.63,0.00020547,2]
[337367496,1725631883767,-500.0,0.00020547,2]
[337367497,1725631883776,-588.01,0.00020547,2]
[337367498,1725631883785,-500.0,0.00020547,2]
[337367499,1725631883794,-500.0,0.00020547,2]
[337367500,1725631883805,-500.0,0.00020547,2]
[337367501,1725631883825,-500.0,0.00020547,2]
[337367502,1725631883834,-500.0,0.00020547,2]
[337367503,1725631883843,-500.0,0.00020547,2]
[337367504,1725631883852,-500.0,0.00020547,2]
[337367505,1725631883862,-696.17,0.00020547,2]
[337367506,1725631883871,-500.0,0.00020547,2]
[337367507,1725631883880,-500.0,0.00020547,2]
[337367508,1725631883889,-500.0,0.00020547,2]
[337367509,1725631883898,-2435.34,0.00020547,2]
[337367510,1725631883908,-500.0,0.00020547,2]
[337367511,1725631883917,-739.29,0.00020547,2]
[337367512,1725631883927,-500.0,0.00020547,2]
[337367513,1725631883935,-500.0,0.00020547,2]
[337367514,1725631883944,-712.06,0.00020547,2]
[337367515,1725631883954,-200.37808385,0.00020547,2]
[337367516,1725631883962,-1437.93,0.00020547,2]
[337367517,1725631883971,-500.0,0.00020547,2]
[337367518,1725631883980,-500.0,0.00020547,2]
[337367519,1725631883989,-1254.48,0.00020547,2]
[337367520,1725631883999,-500.0,0.00020547,2]
[337367521,1725631884008,-500.0,0.00020547,2]
[337367522,1725631884018,-500.0,0.00020547,2]
[337367523,1725631884027,-547.87,0.00020547,2]
[337367524,1725631884038,-500.0,0.00020547,2]
[337367525,1725631884049,-579.46,0.00020547,2]
[337367526,1725631884058,-1992.59,0.00020547,2]
[337367527,1725631884068,-2436.65,0.00020547,2]
[337367528,1725631884077,-500.0,0.00020547,2]
[337367529,1725631884086,-500.0,0.00020547,2]
[337367530,1725631884096,-854.61,0.00020547,2]
[337367531,1725631884106,-500.0,0.00020547,2]
[337367532,1725631884115,-1053.85,0.00020547,2]
[337367533,1725631884124,-500.0,0.00020547,2]
[337367534,1725631884134,-635.84851165,0.00020547,2]
[337367535,1725631884144,-619.13,0.00020547,2]
[337367536,1725631884153,-500.0,0.00020547,2]
[337367537,1725631884162,-500.0,0.00020547,2]
[337367538,1725631884171,-2391.77,0.00020547,2]
[337367539,1725631884181,-1773.27,0.00020547,2]
[337367540,1725631884190,-500.0,0.00020547,2]
[337367541,1725631884199,-1617.1,0.00020547,2]
[337367542,1725631884209,-985.06,0.00020547,2]
[337367543,1725631884219,-1012.85,0.00020547,2]
[337367544,1725631884229,-500.0,0.00020547,2]
[337367545,1725631884239,-1083.74,0.00020547,2]
[337367546,1725631884249,-572.79354391,0.00020547,2]
[337367547,1725631884259,-500.0,0.00020547,2]
[337367548,1725631884270,-500.0,0.00020547,2]
[337367549,1725631884279,-993.62,0.00020547,2]
[337367550,1725631884289,-500.0,0.00020547,2]
[337367551,1725631884302,-500.0,0.00020547,2]
[337367552,1725631884321,-979.52,0.00020547,2]
[337367553,1725631884332,-500.0,0.00020547,2]
[337367554,1725631884343,-1448.57,0.00020547,2]
[337367555,1725631884354,-500.0,0.00020547,2]
[337367556,1725631884365,-500.0,0.00020547,2]
[337367557,1725631884376,-2065.07,0.00020547,2]
[337367558,1725631884386,-500.0,0.00020547,2]
[337367559,1725631884395,-500.0,0.00020547,2]
[337367560,1725631884405,-3583.08,0.00020547,2]
[337367561,1725631884414,-500.0,0.00020547,2]
[337367562,1725631884426,-500.0,0.00020547,2]
[337367563,1725631884436,-500.0,0.00020547,2]
[337367564,1725631884447,-765.11,0.00020547,2]
[337367565,1725631884458,-500.0,0.00020547,2]
[337367566,1725631884468,-2187.02,0.00020547,2]
[337367567,1725631884478,-548.62,0.00020547,2]
[337367568,1725631884487,-500.0,0.00020547,2]
[337367569,1725631884497,-600.2,0.00020547,2]
[337367570,1725631884507,-915.11,0.00020547,2]
[337367571,1725631884516,-526.84,0.00020547,2]
[337367572,1725631884527,-583.77,0.00020547,2]
[337367573,1725631884537,-500.0,0.00020547,2]
[337367574,1725631884547,-500.0,0.00020547,2]
[337367575,1725631884557,-500.0,0.00020547,2]
[337367576,1725631884569,-2820.38,0.00020547,2]
[337367577,1725631884578,-3216.65,0.00020547,2]
[337367578,1725631884587,-500.0,0.00020547,2]
[337367579,1725631884596,-3068.16,0.00020547,2]
[337367580,1725631884606,-500.0,0.00020547,2]
[337367581,1725631884615,-500.0,0.00020547,2]
[337367582,1725631884626,-500.0,0.00020547,2]
[337367583,1725631884636,-500.0,0.00020547,2]
[337367584,1725631884646,-500.0,0.00020547,2]
[337367585,1725631884656,-500.0,0.00020547,2]
[337367586,1725631884666,-2164.36,0.00020547,2]
[337367587,1725631884675,-585.28,0.00020547,2]
[337367588,1725631884684,-500.0,0.00020547,2]
[337367589,1725631884694,-500.0,0.00020547,2]
[337367590,1725631884704,-427.14409123,0.00020547,2]
[337367591,1725631884713,-2677.65,0.00020547,2]
[337367592,1725631884722,-2209.05,0.00020547,2]
[337367593,1725631884732,-500.38,0.00020547,2]
[337367594,1725631884741,-500.0,0.00020547,2]
[337367595,1725631884750,-2074.26,0.00020547,2]
[337367596,1725631884760,-500.0,0.00020547,2]
[337367597,1725631884769,-500.0,0.00020547,2]
[337367598,1725631884778,-3954.89,0.00020547,2]
[337367599,1725631884788,-500.0,0.00020547,2]
[337367600,1725631884798,-1651.0,0.00020547,2]
[337367601,1725631884807,-116314.01,0.00020547,2]
[337367602,1725631884820,-500.0,0.00020547,2]
[337367603,1725631884832,-500.0,0.00020547,2]
[337367604,1725631884842,-500.0,0.00020547,2]
[337367605,1725631884852,-9306.23,0.00020547,2]
[337367606,1725631884862,-1523.95,0.00020547,2]
[337367607,1725631884873,-500.0,0.00020547,2]
[337367608,1725631884882,-1087.16,0.00020547,2]
[337367609,1725631884893,-500.0,0.00020547,2]
[337367610,1725631884903,-541.23,0.00020547,2]
[337367611,1725631884912,-3472.66,0.00020547,2]
[337367612,1725631884922,-500.0,0.00020547,2]
[337367613,1725631884932,-500.0,0.00020547,2]
[337367614,1725631884942,-500.0,0.00020547,2]
[337367615,1725631884953,-500.0,0.00020547,2]
[337367616,1725631884962,-1236.52,0.00020547,2]
[337367617,1725631884973,-1611.2,0.00020547,2]
[337367618,1725631884982,-500.0,0.00020547,2]
[337367619,1725631884992,-500.0,0.00020547,2]
[337367620,1725631885002,-500.0,0.00020547,2]
[337367621,1725631885012,-2055.17,0.00020547,2]
[337367622,1725631885023,-500.0,0.00020547,2]
[337367623,1725631885032,-1839.42,0.00020547,2]
[337367624,1725631885043,-500.0,0.00020547,2]
[337367625,1725631885052,-500.0,0.00020547,2]
[337367626,1725631885067,-500.0,0.00020547,2]
[337367627,1725631885078,-500.0,0.00020547,2]
[337367628,1725631885090,-500.0,0.00020547,2]
[337367629,1725631885100,-622.12,0.00020547,2]
[337367630,1725631885110,-2171.42,0.00020547,2]
[337367631,1725631885121,-745.9,0.00020547,2]
[337367632,1725631885132,-500.0,0.00020547,2]
[337367633,1725631885143,-1274.22,0.00020547,2]
[337367634,1725631885154,-500.0,0.00020547,2]
[337367635,1725631885166,-611.22,0.00020547,2]
[337367636,1725631885177,-1057.51,0.00020547,2]
[337367637,1725631885187,-845.53,0.00020547,2]
[337367638,1725631885197,-500.0,0.00020547,2]
[337367639,1725631885207,-500.0,0.00020547,2]
[337367640,1725631885217,-3522.6,0.00020547,2]
[337367641,1725631885228,-530.81,0.00020547,2]
[337367642,1725631885238,-165.13834827,0.00020547,2]
[337367643,1725631885249,-500.0,0.00020547,2]
[337367644,1725631885259,-3286.15,0.00020547,2]
[337367645,1725631885269,-2863.53,0.00020547,2]
[337367646,1725631885279,-500.0,0.00020547,2]
[337367647,1725631885290,-651.92,0.00020547,2]
[337367648,1725631885301,-2848.96,0.00020547,2]
[337367649,1725631885320,-500.0,0.00020547,2]
[337367650,1725631885331,-2433.94,0.00020547,2]
[337367651,1725631885342,-500.0,0.00020547,2]
[337367652,1725631885352,-2928.81,0.00020547,2]
[337367653,1725631885363,-500.0,0.00020547,2]
[337367654,1725631885374,-654.7,0.00020547,2]
[337367655,1725631885384,-2387.03,0.00020547,2]
[337367656,1725631885395,-500.0,0.00020547,2]
[337367657,1725631885405,-1660.58,0.00020547,2]
[337367658,1725631885416,-500.0,0.00020547,2]
[337367659,1725631885427,-3345.77,0.00020547,2]
[337367660,1725631885437,-500.0,0.00020547,2]
[337367661,1725631885447,-575.36215573,0.00020547,2]
[337367662,1725631885457,-3264.33,0.00020547,2]
[337367663,1725631885467,-500.0,0.00020547,2]
[337367664,1725631885476,-500.0,0.00020547,2]
[337367665,1725631885487,-500.0,0.00020547,2]
[337367666,1725631885497,-1608.24,0.00020547,2]
[337367667,1725631885508,-1081.18,0.00020547,2]
[337367668,1725631885519,-500.76737606,0.00020547,2]
[337367669,1725631885533,-587.81,0.00020547,2]
[337367670,1725631885543,-1370.51,0.00020547,2]
[337367671,1725631885552,-656.69,0.00020547,2]
[337367672,1725631885570,-500.0,0.00020547,2]
[337367673,1725631885580,-1055.34,0.00020547,2]
[337367674,1725631885590,-1952.4,0.00020547,2]
[337367675,1725631885601,-500.0,0.00020547,2]
[337367676,1725631885613,-3518.29,0.00020547,2]
[337367677,1725631885625,-500.0,0.00020547,2]
[337367678,1725631885635,-2418.27,0.00020547,2]
[337367679,1725631885646,-500.0,0.00020547,2]
[337367680,1725631885657,-6016.44,0.00020547,2]
[337367681,1725631885668,-500.0,0.00020547,2]
[337367682,1725631885678,-500.0,0.00020547,2]
[337367683,1725631885688,-1000.0,0.00020547,2]
[337367684,1725631885699,-500.0,0.00020547,2]
[337367685,1725631885709,-500.0,0.00020547,2]
[337367686,1725631885719,-837.34,0.00020547,2]
[337367687,1725631885729,-570.74569222,0.00020547,2]
[337367688,1725631885740,-862.38,0.00020547,2]
[337367689,1725631885751,-500.0,0.00020547,2]
[337367690,1725631885761,-1887.14,0.00020547,2]
[337367691,1725631885772,-2273.13,0.00020547,2]
[337367692,1725631885782,-1963.85,0.00020547,2]
[337367693,1725631885792,-500.0,0.00020547,2]
[337367694,1725631885802,-3757.23,0.00020547,2]
[337367695,1725631885817,-500.0,0.00020547,2]
[337367696,1725631885828,-500.0,0.00020547,2]
[337367697,1725631885840,-500.0,0.00020547,2]
[337367698,1725631885851,-500.0,0.00020547,2]
[337367699,1725631885862,-500.0,0.00020547,2]
[337367700,1725631885871,-500.0,0.00020547,2]
[337367701,1725631885881,-500.0,0.00020547,2]
[337367702,1725631885891,-1009.77,0.00020547,2]
[337367703,1725631885901,-1475.95,0.00020547,2]
[337367704,1725631885911,-669.11,0.00020547,2]
[337367705,1725631885921,-500.0,0.00020547,2]
[337367706,1725631885932,-3550.63,0.00020547,2]
[337367707,1725631885942,-1203.77,0.00020547,2]
[337367708,1725631885953,-500.0,0.00020547,2]
[337367709,1725631885963,-1123.46,0.00020547,2]
[337367710,1725631885973,-1848.36,0.00020547,2]
[337367711,1725631885984,-3384.88,0.00020547,2]
[337367712,1725631885994,-500.0,0.00020547,2]
[337367713,1725631886005,-710.64,0.00020547,2]
[337367714,1725631886015,-1535.68,0.00020547,2]
[337367715,1725631886025,-1036.44,0.00020547,2]
[337367716,1725631886035,-603.27,0.00020547,2]
[337367717,1725631886045,-500.0,0.00020547,2]
[337367718,1725631886055,-500.0,0.00020547,2]
[337367719,1725631886071,-3839.93,0.00020547,2]
[337367720,1725631886081,-500.0,0.00020547,2]
[337367721,1725631886091,-3368.52,0.00020547,2]
[337367722,1725631886101,-500.0,0.00020547,2]
[337367723,1725631886111,-547.17,0.00020547,2]
[337367724,1725631886123,-1934.78,0.00020547,2]
[337367725,1725631886134,-500.0,0.00020547,2]
[337367726,1725631886144,-642.41563432,0.00020547,2]
[337367727,1725631886155,-500.0,0.00020547,2]
[337367728,1725631886166,-1894.75,0.00020547,2]
[337367729,1725631886175,-577.3033603,0.00020547,2]
[337367730,1725631886185,-912.1,0.00020547,2]
[337367731,1725631886195,-716.25,0.00020547,2]
[337367732,1725631886204,-500.0,0.00020547,2]
[337367733,1725631886215,-275.0,0.00020547,2]
[337367734,1725631886225,-500.0,0.00020547,2]
[337367735,1725631886234,-3216.8,0.00020547,2]
[337367736,1725631886245,-500.0,0.00020547,2]
[337367737,1725631886255,-1236.59,0.00020547,2]
[337367738,1725631886266,-1447.97,0.00020547,2]
[337367739,1725631886276,-3894.99,0.00020547,2]
[337367740,1725631886287,-833.5,0.00020547,2]
[337367741,1725631886297,-500.0,0.00020547,2]
[337367742,1725631886307,-1879.17,0.00020547,2]
[337367743,1725631886323,-1187.25,0.00020547,2]
[337367744,1725631886332,-500.0,0.00020547,2]
[337367745,1725631886342,-510.23,0.00020547,2]
[337367746,1725631886353,-725.44,0.00020547,2]
[337367747,1725631886363,-2343.94,0.00020547,2]
[337367748,1725631886373,-817.13,0.00020547,2]
[337367749,1725631886383,-2268.84,0.00020547,2]
[337367750,1725631886393,-2528.823517,0.00020548,2]
[337367751,1725631886403,-1500.0,0.00020722,2]
[337367752,1725631886413,-975.88,0.00020821,2]
[337367753,1725631886424,-502.29,0.00020821,2]
[337367754,1725631886435,-500.0,0.00020821,2]
[337367755,1725631886445,-500.0,0.00020821,2]
[337367756,1725631886456,-500.0,0.00020821,2]
[337367757,1725631886466,-500.0,0.00020821,2]
[337367758,1725631886476,-500.0,0.00020821,2]
[337367759,1725631886486,-500.0,0.00020821,2]
[337367760,1725631886496,-500.0,0.00020821,2]
[337367761,1725631886506,-500.0,0.00020821,2]
[337367762,1725631886516,-500.0,0.00020821,2]
[337367763,1725631886531,-500.68378032,0.00020821,2]
[337367764,1725631886542,-500.0,0.00020821,2]
[337367765,1725631886553,-500.0,0.00020821,2]
[337367766,1725631886570,-532.12,0.00020821,2]
[337367767,1725631886581,-501.56,0.00020821,2]
[337367768,1725631886591,-500.0,0.00020821,2]
[337367769,1725631886601,-500.0,0.00020821,2]
[337367770,1725631886614,-667.2,0.00020821,2]
[337367771,1725631886624,-500.0,0.00020821,2]
[337367772,1725631886635,-848.57,0.00020821,2]
[337367773,1725631886645,-500.0,0.00020821,2]
[337367774,1725631886655,-500.0,0.00020821,2]
[337367775,1725631886665,-500.0,0.00020821,2]
[337367776,1725631886676,-500.0,0.00020821,2]
[337367777,1725631886687,-500.0,0.00020821,2]
[337367778,1725631886698,-500.0,0.00020821,2]
[337367779,1725631886709,-500.0,0.00020821,2]
[337367780,1725631886720,-500.0,0.00020821,2]
[337367781,1725631886733,-500.0,0.00020821,2]
[337367782,1725631886743,-500.0,0.00020821,2]
[337367783,1725631886754,-500.0,0.00020821,2]
[337367784,1725631886765,-676.68,0.00020821,2]
[337367785,1725631886775,-500.0,0.00020821,2]
[337367786,1725631886785,-500.0,0.00020821,2]
[337367787,1725631886795,-500.0,0.00020821,2]
[337367788,1725631886805,-500.0,0.00020821,2]
[337367789,1725631886820,-636.07,0.00020821,2]
[337367790,1725631886831,-500.0,0.00020821,2]
[337367791,1725631886841,-500.0,0.00020821,2]
[337367792,1725631886851,-500.0,0.00020821,2]
[337367793,1725631886862,-500.0,0.00020821,2]
[337367794,1725631886872,-500.0,0.00020821,2]
[337367795,1725631886881,-500.0,0.00020821,2]
[337367796,1725631886892,-500.0,0.00020821,2]
[337367797,1725631886903,-500.0,0.00020821,2]
[337367798,1725631886914,-500.0,0.00020821,2]
[337367799,1725631886926,-718.23,0.00020821,2]